Cogmind - Beta 9.6 @@@ ROGUE MODE // 2020.07.24 @ 19:34:34 Player: Mr.Manatee Result: Destroyed by S-10 Pest with Light Assault Rifle Performance ------------- Evolutions (0) 0 Regions Visited (1) 200 Robots Destroyed (2) 10 Value Destroyed (16) 16 Prototype IDs (0) 0 Alien Tech Used (0) 0 Bonus (0) 0 TOTAL SCORE: 226 Bonus ------- None Cogmind --------- Core Integrity 0/250 Matter 300/300 Energy 99/100 System Corruption 0% Temperature Cool (0) Movement Core (50) Location -10/Materials Parts ------- > --- POWER (1) -------- (None) > --- PROPULSION (2) --- (None) > --- UTILITY (2) ------ (None) > --- WEAPON (2) ------- (None) > --- INVENTORY (4) ---- Light Ion Engine Small Storage Unit Small Storage Unit Peak State ------------ > --- POWER ------------ Ion Engine > --- PROPULSION ------- Wheel Compact Wheel > --- UTILITY ---------- Small Storage Unit Small Storage Unit > --- WEAPON ----------- Medium Laser Medium Laser > --- INVENTORY -------- Light Ion Engine [Rating: 7] Favorites ----------- Power Ion Engine Engine Ion Engine Propulsion Compact Wheel Wheel Compact Wheel Utility Small Storage Unit Storage Small Storage Unit Weapon Medium Laser Energy Gun Medium Laser Build | -11 -10 ------- Run | Scr Mat Slots Evolved . | . . Power . | . . Propulsion . | . . Utility . | . . Weapon . | . . Parts Attached 7 | 7 . Power 1 | 1 . Engine 1 | 1 . Core . | . . Reactor . | . . Propulsion 2 | 2 . Treads . | . . Leg . | . . Wheel 2 | 2 . Hover . | . . Flight . | . . Utility 2 | 2 . Device . | . . Storage 2 | 2 . Processor . | . . Hackware . | . . Protection . | . . Artifact . | . . Weapon 2 | 2 . Energy Gun 2 | 2 . Energy Cannon . | . . Ballistic Gun . | . . Ballistic Cannon . | . . Launcher . | . . Special Weapon . | . . Impact Weapon . | . . Slashing Weapon . | . . Piercing Weapon . | . . Special Melee Weapon . | . . Unidentified Prototypes . | . . Parts Lost 5 | . 5 Power 1 | . 1 Propulsion 2 | . 2 Utility . | . . Weapon 2 | . 2 Highest Loss Streak 5 | . 5 Average Slot Usage (%) 74 | . 74 Engine 11 | . 11 Wheel 22 | . 22 Storage 28 | . 28 Energy Gun 11 | . 11 Naked Turns 8 | . 8 Heaviest Build 17 | 17 17 Greatest Support 26 | 26 26 Greatest Overweight (x) 1 | 1 . Average Overweight (x) . | . . Largest Inventory Capacity 8 | 8 8 Average Capacity 6 | 5 7 Most Carried 3 | 1 3 Average Carried . | . 1 Final Capacity 8 | 8 4 Final Carried 3 | 1 3 Class Distribution -------------------- 100% | Mutant Dominant Class ---------------- Mutant | -10/Materials Resources | -11 -10 ----------- Run | Scr Mat Matter Collected 243 | 233 10 Remotely . | . . Salvage Created 87 | 77 10 Parts 7 | 4 3 Haulers Intercepted . | . . Recyclers Shooed . | . . Parts Field Recycled . | . . Retrieved Matter . | . . Parts Self-Destructed . | . . Prevented . | . . Kills | -11 -10 ------- Run | Scr Mat Combat Hostiles Destroyed 1 | . 1 Guns 1 | . 1 Classes Destroyed 2 | 1 1 Recycler 1 | 1 . Swarmer 1 | . 1 Best Kill Streak 1 | 1 1 Combat Bots Only 1 | . 1 Max Kills in Single Turn 1 | 1 1 Gunslinging . | . . Exploded . | . . Melee . | . . Uniques/NPCs Destroyed . | . . Combat | -11 -10 -------- Run | Scr Mat Damage Taken 513 | . 513 Core 256 | . 256 Absorbed by Shields . | . . Core Remaining (%) 100 | 100 . Volleys Fired 5 | 2 3 Largest 2 | 2 2 Hottest 100 | 100 100 Shots Fired 9 | 4 5 Gun 9 | 4 5 Cannon . | . . Launcher . | . . Special . | . . Kinetic . | . . Thermal 9 | 4 5 Explosive . | . . Electromagnetic . | . . Robot Hit Streak 2 | 2 2 Robot Miss Streak 2 | 1 2 Penetration Max . | . . Secondary Targets 1 | . 1 Max Gunslinging Chain 1 | . 1 Shots Hit Robots 5 | 3 2 Core Hits 3 | 2 1 Critical Hits . | . . Critical Kills . | . . Critical Parts Destroyed . | . . Melee Attacks . | . . Impact . | . . Slashing . | . . Piercing . | . . Sneak Attacks . | . . Combat Hostiles . | . . Follow-up Attacks . | . . Damage Inflicted 57 | 38 19 Guns 51 | 38 13 Cannons . | . . Explosions . | . . Melee . | . . Ramming 6 | . 6 Kinetic . | . . Thermal 51 | 38 13 Explosive . | . . Electromagnetic . | . . Impact . | . . Slashing . | . . Piercing . | . . Highest Corruption . | . . Average Corruption . | . . Corruption Purged . | . . Overload Shots . | . . Overflow Damage . | . . Projectiles . | . . Explosions . | . . Melee . | . . Knockbacks . | . . Impact . | . . Kinetic . | . . Secondary . | . . Self-Inflicted Damage 3 | . 3 Shots . | . . Rammed 1 | . 1 Targets Rammed 1 | . 1 Kicked . | . . Crushed . | . . Highest Temperature 98 | 98 88 Average Temperature 51 | 54 49 Received Heat Transfer 84 | . 84 Siege Activations . | . . Robots Corrupted . | . . Combat Hostiles . | . . Parts Fried . | . . Impact Corruptions . | . . Robots Melted . | . . Combat Hostiles . | . . Parts Melted . | . . Heat Transferred 148 | 111 37 Parts Sabotaged . | . . Parts Stolen . | . . Parts Stripped . | . . Power Chain Reactions . | . . Missiles Intercepted . | . . Alert | -11 -10 ------- Run | Scr Mat Peak Influence 39 | 5 39 Average Influence 6 | 1 10 Maximum Alert Level . | . . Low Security (%) 100 | 100 100 Level 1 . | . . Level 2 . | . . Level 3 . | . . Level 4 . | . . Level 5 . | . . High Security . | . . Max Security . | . . Squads Dispatched 3 | . 3 Investigation 1 | . 1 Extermination . | . . Reinforcement 2 | . 2 Assault . | . . Garrison . | . . Intercept . | . . Construction Impeded . | . . Haulers Reinforced . | . . Stealth | -11 -10 --------- Run | Scr Mat Distress Signals . | . . Communications Jammed . | . . Distress Signals . | . . Times Spotted 17 | . 17 Peak Tracking Total 14 | . 14 Tactical Retreats . | . . Traps | -11 -10 ------- Run | Scr Mat Traps Triggered . | . . Indirectly . | . . Trap Hack Attempts . | . . Triggered . | . . Disarmed . | . . Reprogrammed . | . . Reused . | . . Traps Extracted . | . . Installed . | . . Triggered . | . . Machines | -11 -10 ---------- Run | Scr Mat Machines Disabled . | . . Max in Single Turn . | . . Machines Sabotaged . | . . Garrisons Compromised . | . . Overloaded Fab Kills . | . . Fab Network Shutdowns . | . . Hacking | -11 -10 --------- Run | Scr Mat Machines Accessed 1 | . 1 Terminals 1 | . 1 Fabricators . | . . Repair Stations . | . . Recycling Units . | . . Scanalyzers . | . . Garrison Access . | . . Total Hacks 3 | . 3 Successful 1 | . 1 Failed 1 | . 1 Catastrophic . | . . Database Lockouts 1 | . 1 Manual 3 | . 3 Terminals 3 | . 3 Fabricators . | . . Repair Stations . | . . Recycling Units . | . . Scanalyzers . | . . Garrison Access . | . . Terminal Hacks 1 | . 1 Robot Analysis 1 | . 1 Fabricator Hacks . | . . Repair Station Hacks . | . . Recycling Unit Hacks . | . . Scanalyzer . | . . Garrison Access Hacks . | . . Unauthorized Hacks . | . . Terminals . | . . Fabricators . | . . Repair Stations . | . . Recycling Units . | . . Scanalyzers . | . . Garrison Access . | . . Data Cores Recovered . | . . Used . | . . Hacking Detections 1 | . 1 Full Trace Events . | . . Feedback Events . | . . Feedback Blocked . | . . Robot Schematics Acquired . | . . Robots Built . | . . Matter . | . . Time . | . . Total Robot Build Rating . | . . Part Schematics Acquired . | . . Parts Built . | . . Matter . | . . Time . | . . Total Part Build Rating . | . . Parts Repaired . | . . Time . | . . Parts Recycled . | . . Recycled Matter . | . . Retrieved Matter . | . . Retrieved Components . | . . Parts Scanalyzed . | . . Part Schematics Acquired . | . . Parts Damaged . | . . Bothacking | -11 -10 ------------ Run | Scr Mat Used RIF Installer . | . . Robots Hacked . | . . Non-combat . | . . Combat . | . . Robot Hacks Applied . | . . Relay Couplers Released . | . . Robots Rewired . | . . Allies Hacked . | . . Hacks Repelled . | . . Allies | -11 -10 -------- Run | Scr Mat Total Allies . | . . Largest Group . | . . Highest-Rated Group . | . . Highest-Rated Ally . | . . Total Orders . | . . Ally Attacks . | . . Total Damage . | . . Kills . | . . Allies Corrupted . | . . Allies Melted . | . . Intel | -11 -10 ------- Run | Scr Mat Robot Analysis Total 1 | . 1 Derelict Logs Recovered . | . . Drone Launches . | . . Drone Recoveries . | . . Exploration | -11 -10 ------------- Run | Scr Mat Turns Passed 108 | 53 55 Spaces Moved 97 | 41 56 Core 22 | 6 16 Treads . | . . Legs . | . . Wheels 75 | 35 40 Hover . | . . Flight . | . . Fastest Speed 50 | 50 50 Average Speed 82 | 86 79 Slowest Speed 100 | 100 100 Overloaded Moves . | . . Propulsion Burnouts . | . . Robots Hopped . | . . Cave-ins Triggered . | . . Exploration Rate (%) 10 | 4 17 Regions Visited 1 Branch Regions . Pre-discovered Areas . | . . Known Exits Taken . | . . Unknown Exits Taken 1 | 1 . Scrap Searched . | . . Spaces Dug . | . . Terrain Destroyed . | . . Melee . | . . Projectile . | . . AOE . | . . Actions | -11 -10 --------- Run | Scr Mat Total 112 | 50 62 Wait . | . . Move 96 | 40 56 Hop . | . . Pick Up 1 | 1 . Fast Attach 7 | 7 . Attach . | . . Detach 2 | . 2 Swap . | . . Drop . | . . Fire 5 | 2 3 Melee . | . . Ram 1 | . 1 Kick . | . . Crush . | . . Escape Stasis . | . . Rewire . | . . Trap . | . . Miscellaneous . | . . Route ------- -11/Scrapyard -10/Materials (discovered 1 exit: [*Mat]) History --------- Turn | Location | Event 6 | -11/Scrapyard | Discovered new exit (range 16) 54 | -11/Scrapyard | Entered Materials 61 | -10/Materials | Central database locked down 102 | -10/Materials | Core integrity fell below 50% 106 | -10/Materials | Core integrity fell below 20% 108 | -10/Materials | Discovered new exit (range 14) 109 | -10/Materials | Destroyed by S-10 Pest with Light Assault Rifle Last Messages --------------- 00061_ Connecting with Terminal... 00072_ O-16 Technician: "IFF HANDSHAKE FAILED. SECURING TERMINAL." 00072_ O-16 Technician uses terminal to summon reinforcements. 00072_ ALERT: Hostiles spotted, dispatching reinforcements to Terminal M003. 00072_ O-16 Technician locks terminal. 00075_ S-10 Pest destroyed. 00075_ Switching to secondary target: S-10 Pest. 00076_ Acquired 10 matter. 00076_ R-06 Scavenger collects Flight Unit. 00077_ Med. Laser destroyed. 00088_ Slammed into T-07 Excavator. 00094_ Wheel destroyed. 00098_ Ion Engine destroyed. 00099_ Com. Wheel destroyed. 00100_ S-10 Pest destroyed. 00102_ O-16 Technician: "IFF HANDSHAKE FAILED. SECURING TERMINAL." 00104_ ALERT: Hostiles spotted, dispatching reinforcements to Terminal M002. 00108_ EXIT=FOUND Map ----- +----------------------------------------------------+ | ?????????????????????# #?????????? | | ?????????????????????# #?????????? | | ?????????????????????# #?????????? | | ?????????????????????# #?????????? | | ?????????????????????# #?????????? | | ?????????????????????# #?????????? | | ?????????????????????# #?????????? | | ?????????????????????# #?????????? | | ?????????????????????# #?????????? | | ?????????????????????# #?????????? | | ?????????####???????## ##????????? | | ?????????# ??????# = #?######?? | | ?????????# ??????#*%[# #?? | | ?????????? ??????# = # #?? | | ??????????? ??????# + #?? | | ??????????? ??????# # !] #?? | | ???????????? ??????# #??] #?? | | ??????#######+####### #???? #?? | | ??????# ] g g #??????#?? | | ??????# t +????????? | | ??????# """ g #????????? | | ??????# """ ###### ##????????? | | ??????# """ s #????# #?????????? | | ??????# sss #????# #?????????? | | ??????# s #????# #?????????? | | ??????# @ss #????# #?????????? | | ??????# #######????# #?????????? | | ??????# #??????????# ??????????? | | ??????+ #??????????# ??????????? | | ??????# #??????????? ??????????? | | ??????# #??????????? ??????????? | | ??????# #??????????? ??????????? | | ??????# #??????????? ??????????? | | ??????# #???????????+??????????? | | ??????# ???????????????????????? | | ??????# g ???????????????????????? | | ??????# g???????????????????????? | | ??????# < ???????????????????????? | | ??????# ???????????????????????? | | ??????####???????????????????????? | | ?????????????????????????????????? | | ?????????????????????????????????? | | ?????????????????????????????????? | | ?????????????????????????????????? | | ?????????????????????????????????? | | ?????????????????????????????????? | | ?????????????????????????????????? | | ?????????????????????????????????? | | ?????????????????????????????????? | | ?????????????????????????????????? | +----------------------------------------------------+ Best States ------------- Heat Dissipation 25 Energy Generation 10 Energy Capacity 250 Matter Stores 300 Matter Capacity 300 Sight Range 16 Terrain Scan Density 10 Evasion (%) 42 Item Schematics ----------------- None Robot Schematics ------------------ None Fabricated ------------ Nothing Alien Tech Used ----------------- None Achievements -------------- None Challenges ------------ None Game ------ Seed MyomerBladeRay Manual? 0 Play Time 00:02:31 Cumulative 71.9 hours Start 2020.07.24 @ 19:32:38 End 2020.07.24 @ 19:34:34 Sessions 1 Manual Loads 0 Difficulty Rogue Special Mode None Game No. 87 Rogue 87 Adventurer 0 Explorer 0 Win Type - Total 0 Types 0/0/0/0/0/0/0 Lore% 45 Gallery% 59 Achievement% 42 Wizard Run 0 Options --------- ASCII 0 Keyboard 1 Movement Numpad Keybinds 0 Fullscreen 2 Font 18/SmallcapsGlow Map View 76x50 Tactical HUD 1 Map Filters NONE Filters NONE Steam 1 RUN: c3d730c7-1e27-42e9-9861-4b253474c5f5